[Event "Titled Tuesday Blitz November 15 Late 2022"]
[White "Mustafayev, Farid"]
[Black "Ferriz Barrios, Andres"]
[WhiteFideId "13408771"]
[BlackFideId "5104467"]
[WhiteElo "2192"]
[BlackElo "2271"]
[Result "1-0"]
[Round "01"]
[TimeControl "180+1"]
[Date "2022.11.16"]
[WhiteClock "0:01:11"]
[BlackClock "0:01:05"]

1. d4 {[%clk 0:02:59]}  Nf6 {[%clk 0:02:58]} 2. c4 {[%clk 0:02:57]}  e5 {[%clk 0:02:58]} 3. dxe5 {[%clk 0:02:57]}  Ng4 {[%clk 0:02:59]} 4. Nf3 {[%clk 0:02:57]}  Nc6 {[%clk 0:02:58]} 5. Bf4 {[%clk 0:02:58]}  Bb4+ {[%clk 0:02:56]} 6. Nbd2 {[%clk 0:02:57]}  Qe7 {[%clk 0:02:56]} 7. e3 {[%clk 0:02:57]}  Ngxe5 {[%clk 0:02:56]} 8. Nxe5 {[%clk 0:02:56]}  Nxe5 {[%clk 0:02:57]} 9. a3 {[%clk 0:02:57]}  Bxd2+ {[%clk 0:02:55]} 10. Qxd2 {[%clk 0:02:57]}  O-O {[%clk 0:02:55]} 11. Be2 {[%clk 0:02:57]}  d6 {[%clk 0:02:55]} 12. O-O {[%clk 0:02:56]}  Ng6 {[%clk 0:02:56]} 13. Bg3 {[%clk 0:02:56]}  Be6 {[%clk 0:02:56]} 14. Rac1 {[%clk 0:02:56]}  f5 {[%clk 0:02:49]} 15. Qc3 {[%clk 0:02:42]}  Rab8 {[%clk 0:02:47]} 16. c5 {[%clk 0:02:40]}  f4 {[%clk 0:02:46]} 17. exf4 {[%clk 0:02:38]}  Nxf4 {[%clk 0:02:47]} 18. Bxf4 {[%clk 0:02:31]}  Rxf4 {[%clk 0:02:47]} 19. cxd6 {[%clk 0:02:31]}  cxd6 {[%clk 0:02:48]} 20. Qe3 {[%clk 0:02:28]}  Rbf8 {[%clk 0:02:43]} 21. Qxa7 {[%clk 0:02:26]}  Kh8 {[%clk 0:02:37]} 22. Qe3 {[%clk 0:02:26]}  Qd7 {[%clk 0:02:30]} 23. f3 {[%clk 0:02:04]}  Bd5 {[%clk 0:02:14]} 24. Rfd1 {[%clk 0:02:03]}  Bc6 {[%clk 0:02:14]} 25. Rc4 {[%clk 0:01:56]}  Rxc4 {[%clk 0:02:08]} 26. Bxc4 {[%clk 0:01:57]}  Qf5 {[%clk 0:01:55]} 27. Qd3 {[%clk 0:01:50]}  Qc5+ {[%clk 0:01:50]} 28. Qd4 {[%clk 0:01:50]}  Qg5 {[%clk 0:01:43]} 29. Qxd6 {[%clk 0:01:45]}  Re8 {[%clk 0:01:41]} 30. Qg3 {[%clk 0:01:41]}  Qe3+ {[%clk 0:01:40]} 31. Qf2 {[%clk 0:01:41]}  Qf4 {[%clk 0:01:39]} 32. Bf1 {[%clk 0:01:31]}  h6 {[%clk 0:01:37]} 33. Qd4 {[%clk 0:01:31]}  Qg5 {[%clk 0:01:31]} 34. b4 {[%clk 0:01:31]}  Bxf3 {[%clk 0:01:30]} 35. Rd3 {[%clk 0:01:23]}  Bh5 {[%clk 0:01:22]} 36. Qd5 {[%clk 0:01:17]}  Qh4 {[%clk 0:01:05]} 37. Rh3 {[%clk 0:01:11]} 1-0


[Site "https://www.chess.com"]

[Event "Titled Tuesday Blitz November 15 Late 2022"]
[White "Papasimakopoulos, Alexandros"]
[Black "Jarocka, Liwia"]
[WhiteFideId "4244125"]
[BlackFideId "21807558"]
[WhiteElo "2365"]
[BlackElo "1989"]
[Result "0-1"]
[Round "01"]
[TimeControl "180+1"]
[Date "2022.11.16"]
[WhiteClock "0:00:33"]
[BlackClock "0:00:11"]

1. d4 {[%clk 0:02:50]}  Nf6 {[%clk 0:02:52]} 2. c4 {[%clk 0:02:50]}  g6 {[%clk 0:02:52]} 3. Nc3 {[%clk 0:02:50]}  Bg7 {[%clk 0:02:53]} 4. Bg5 {[%clk 0:02:50]}  d6 {[%clk 0:02:53]} 5. e3 {[%clk 0:02:51]}  O-O {[%clk 0:02:53]} 6. Be2 {[%clk 0:02:51]}  c5 {[%clk 0:02:54]} 7. d5 {[%clk 0:02:51]}  h6 {[%clk 0:02:52]} 8. Bh4 {[%clk 0:02:51]}  a6 {[%clk 0:02:50]} 9. a4 {[%clk 0:02:50]}  e6 {[%clk 0:02:42]} 10. Nf3 {[%clk 0:02:50]}  exd5 {[%clk 0:02:42]} 11. cxd5 {[%clk 0:02:50]}  Re8 {[%clk 0:02:40]} 12. Nd2 {[%clk 0:02:50]}  Qc7 {[%clk 0:02:36]} 13. O-O {[%clk 0:02:48]}  Nbd7 {[%clk 0:02:36]} 14. Bg3 {[%clk 0:02:48]}  h5 {[%clk 0:02:33]} 15. Nc4 {[%clk 0:02:47]}  Bf8 {[%clk 0:02:28]} 16. a5 {[%clk 0:02:46]}  Rb8 {[%clk 0:02:25]} 17. Na4 {[%clk 0:02:43]}  Ne4 {[%clk 0:02:18]} 18. Rb1 {[%clk 0:02:27]}  Nxg3 {[%clk 0:02:09]} 19. hxg3 {[%clk 0:02:28]}  Ne5 {[%clk 0:01:59]} 20. Ncb6 {[%clk 0:02:20]}  Bg7 {[%clk 0:01:54]} 21. Qc2 {[%clk 0:02:14]}  Bf5 {[%clk 0:01:48]} 22. e4 {[%clk 0:02:14]}  Bd7 {[%clk 0:01:44]} 23. Nxd7 {[%clk 0:02:00]}  Nxd7 {[%clk 0:01:43]} 24. b4 {[%clk 0:02:00]}  b5 {[%clk 0:01:20]} 25. axb6 {[%clk 0:01:58]}  Nxb6 {[%clk 0:01:19]} 26. bxc5 {[%clk 0:01:56]}  Nxa4 {[%clk 0:01:14]} 27. Qxa4 {[%clk 0:01:42]}  dxc5 {[%clk 0:01:10]} 28. Rfd1 {[%clk 0:01:26]}  Bd4 {[%clk 0:01:07]} 29. Bf3 {[%clk 0:01:20]}  Qxg3 {[%clk 0:01:01]} 30. Qa2 {[%clk 0:01:13]}  Qf4 {[%clk 0:00:38]} 31. Qxa6 {[%clk 0:01:00]}  h4 {[%clk 0:00:37]} 32. Qd3 {[%clk 0:00:46]}  h3 {[%clk 0:00:32]} 33. gxh3 {[%clk 0:00:45]}  Rxb1 {[%clk 0:00:29]} 34. Rxb1 {[%clk 0:00:44]}  Qg3+ {[%clk 0:00:28]} 35. Kh1 {[%clk 0:00:43]}  Qxh3+ {[%clk 0:00:28]} 36. Kg1 {[%clk 0:00:42]}  Qg3+ {[%clk 0:00:26]} 37. Kh1 {[%clk 0:00:40]}  Qh4+ {[%clk 0:00:26]} 38. Kg2 {[%clk 0:00:37]}  Qxf2+ {[%clk 0:00:26]} 39. Kh1 {[%clk 0:00:36]}  Kg7 {[%clk 0:00:24]} 40. Bg4 {[%clk 0:00:31]}  Rh8+ {[%clk 0:00:19]} 41. Bh3 {[%clk 0:00:32]}  Qf4 {[%clk 0:00:17]} 42. Rf1 {[%clk 0:00:28]}  Qh4 {[%clk 0:00:13]} 43. Kg2 {[%clk 0:00:27]}  Qg5+ {[%clk 0:00:13]} 44. Kh1 {[%clk 0:00:28]}  Qh5 {[%clk 0:00:11]} 45. Kg2 {[%clk 0:00:27]}  Qg5+ {[%clk 0:00:10]} 46. Qg3 {[%clk 0:00:28]}  Qxg3+ {[%clk 0:00:07]} 47. Kxg3 {[%clk 0:00:29]}  Re8 {[%clk 0:00:06]} 48. Kf3 {[%clk 0:00:26]}  f6 {[%clk 0:00:05]} 49. Rb1 {[%clk 0:00:26]}  Re7 {[%clk 0:00:05]} 50. d6 {[%clk 0:00:25]}  Re8 {[%clk 0:00:05]} 51. Rb7+ {[%clk 0:00:25]}  Kf8 {[%clk 0:00:05]} 52. Rh7 {[%clk 0:00:19]}  f5 {[%clk 0:00:04]} 53. exf5 {[%clk 0:00:17]}  gxf5 {[%clk 0:00:04]} 54. Bxf5 {[%clk 0:00:18]}  Rd8 {[%clk 0:00:05]} 55. Rh8+ {[%clk 0:00:18]}  Bxh8 {[%clk 0:00:04]} 56. d7 {[%clk 0:00:18]}  Bf6 {[%clk 0:00:04]} 57. Ke4 {[%clk 0:00:19]}  Ke7 {[%clk 0:00:05]} 58. Kd5 {[%clk 0:00:19]}  Bd4 {[%clk 0:00:06]} 59. Bg4 {[%clk 0:00:19]}  Rxd7+ {[%clk 0:00:06]} 60. Bxd7 {[%clk 0:00:19]}  Kxd7 {[%clk 0:00:07]} 61. Kc4 {[%clk 0:00:19]}  Kc7 {[%clk 0:00:08]} 62. Kd5 {[%clk 0:00:20]}  Kb6 {[%clk 0:00:09]} 63. Kc4 {[%clk 0:00:21]}  Kc6 {[%clk 0:00:09]} 64. Kb3 {[%clk 0:00:22]}  Kb5 {[%clk 0:00:10]} 65. Kc2 {[%clk 0:00:23]}  c4 {[%clk 0:00:10]} 66. Kb1 {[%clk 0:00:23]}  Kb4 {[%clk 0:00:11]} 67. Ka2 {[%clk 0:00:24]}  c3 {[%clk 0:00:11]} 68. Kb1 {[%clk 0:00:25]}  Be3 {[%clk 0:00:11]} 69. Ka2 {[%clk 0:00:26]}  Kc4 {[%clk 0:00:11]} 70. Kb1 {[%clk 0:00:27]}  Kd3 {[%clk 0:00:11]} 71. Ka2 {[%clk 0:00:27]}  Bg1 {[%clk 0:00:12]} 72. Kb3 {[%clk 0:00:28]}  c2 {[%clk 0:00:12]} 73. Kb2 {[%clk 0:00:29]}  Kd2 {[%clk 0:00:12]} 74. Ka2 {[%clk 0:00:29]}  c1=Q {[%clk 0:00:11]} 75. Kb3 {[%clk 0:00:30]}  Qc3+ {[%clk 0:00:12]} 76. Ka2 {[%clk 0:00:31]}  Qb4 {[%clk 0:00:11]} 77. Ka1 {[%clk 0:00:32]}  Bd4+ {[%clk 0:00:11]} 78. Ka2 {[%clk 0:00:33]}  Qb2# {[%clk 0:00:11]} 0-1


[Site "https://www.chess.com"]

[Event "Titled Tuesday Blitz November 15 Late 2022"]
[White "Pichot, Alan"]
[Black "Silva Lucena, Cristian"]
[WhiteFideId "110973"]
[BlackFideId "2232588"]
[WhiteElo "2560"]
[BlackElo "2223"]
[Result "1/2-1/2"]
[Round "01"]
[TimeControl "180+1"]
[Date "2022.11.16"]
[WhiteClock "0:00:39"]
[BlackClock "0:00:18"]

1. Nf3 {[%clk 0:02:50]}  Nf6 {[%clk 0:02:58]} 2. c3 {[%clk 0:02:48]}  g6 {[%clk 0:02:57]} 3. g3 {[%clk 0:02:47]}  Bg7 {[%clk 0:02:57]} 4. Bg2 {[%clk 0:02:48]}  O-O {[%clk 0:02:58]} 5. O-O {[%clk 0:02:48]}  d6 {[%clk 0:02:59]} 6. d4 {[%clk 0:02:48]}  c5 {[%clk 0:02:57]} 7. d5 {[%clk 0:02:48]}  b5 {[%clk 0:02:45]} 8. a4 {[%clk 0:02:46]}  bxa4 {[%clk 0:02:43]} 9. Rxa4 {[%clk 0:02:45]}  Bb7 {[%clk 0:02:40]} 10. c4 {[%clk 0:02:43]}  Nbd7 {[%clk 0:02:39]} 11. b3 {[%clk 0:02:43]}  Nb6 {[%clk 0:02:40]} 12. Ra2 {[%clk 0:02:42]}  a5 {[%clk 0:02:40]} 13. Nc3 {[%clk 0:02:41]}  Nfd7 {[%clk 0:02:33]} 14. Bd2 {[%clk 0:02:41]}  a4 {[%clk 0:02:26]} 15. Nxa4 {[%clk 0:02:38]}  Nxa4 {[%clk 0:02:25]} 16. Rxa4 {[%clk 0:02:38]}  Rxa4 {[%clk 0:02:25]} 17. bxa4 {[%clk 0:02:39]}  Qa8 {[%clk 0:02:21]} 18. a5 {[%clk 0:02:36]}  Ba6 {[%clk 0:02:21]} 19. Qa4 {[%clk 0:02:31]}  Ne5 {[%clk 0:02:16]} 20. Nxe5 {[%clk 0:02:27]}  Bxe5 {[%clk 0:02:17]} 21. Rb1 {[%clk 0:02:27]}  Rb8 {[%clk 0:02:16]} 22. Rxb8+ {[%clk 0:02:19]}  Qxb8 {[%clk 0:02:16]} 23. Be4 {[%clk 0:02:20]}  Qb2 {[%clk 0:02:08]} 24. Bh6 {[%clk 0:02:19]}  Qa1+ {[%clk 0:01:59]} 25. Qxa1 {[%clk 0:02:18]}  Bxa1 {[%clk 0:02:00]} 26. Bg5 {[%clk 0:01:45]}  Kf8 {[%clk 0:01:49]} 27. Bd3 {[%clk 0:01:26]}  Bc3 {[%clk 0:01:48]} 28. e4 {[%clk 0:01:26]}  Bxa5 {[%clk 0:01:47]} 29. f4 {[%clk 0:01:26]}  f6 {[%clk 0:01:42]} 30. Bh6+ {[%clk 0:01:26]}  Kf7 {[%clk 0:01:41]} 31. Kf2 {[%clk 0:01:27]}  Bc3 {[%clk 0:01:40]} 32. Kf3 {[%clk 0:01:27]}  Bc8 {[%clk 0:01:39]} 33. g4 {[%clk 0:01:25]}  Bd7 {[%clk 0:01:36]} 34. h4 {[%clk 0:01:25]}  Ba4 {[%clk 0:01:36]} 35. h5 {[%clk 0:01:20]}  Bd1+ {[%clk 0:01:33]} 36. Kg3 {[%clk 0:01:19]}  Be1+ {[%clk 0:01:31]} 37. Kh3 {[%clk 0:01:20]}  gxh5 {[%clk 0:01:26]} 38. gxh5 {[%clk 0:01:20]}  Bxh5 {[%clk 0:01:25]} 39. e5 {[%clk 0:01:12]}  fxe5 {[%clk 0:01:15]} 40. fxe5 {[%clk 0:01:13]}  dxe5 {[%clk 0:01:07]} 41. Bxh7 {[%clk 0:01:09]}  Be2 {[%clk 0:01:04]} 42. Be3 {[%clk 0:00:57]}  Bb4 {[%clk 0:01:02]} 43. Be4 {[%clk 0:00:49]}  Bxc4 {[%clk 0:01:02]} 44. Kg4 {[%clk 0:00:50]}  Be2+ {[%clk 0:00:47]} 45. Kf5 {[%clk 0:00:50]}  c4 {[%clk 0:00:42]} 46. Kxe5 {[%clk 0:00:50]}  Bc3+ {[%clk 0:00:32]} 47. Bd4 {[%clk 0:00:47]}  Bd2 {[%clk 0:00:27]} 48. Bc2 {[%clk 0:00:40]}  Bd3 {[%clk 0:00:23]} 49. Bxd3 {[%clk 0:00:39]}  cxd3 {[%clk 0:00:24]} 50. Ke4 {[%clk 0:00:40]}  Bb4 {[%clk 0:00:19]} 51. Kxd3 {[%clk 0:00:39]}  e6 {[%clk 0:00:18]} 52. Bc5 {[%clk 0:00:39]}  Bxc5 {[%clk 0:00:18]} 53. dxe6+ {[%clk 0:00:39]}  Kxe6 {[%clk 0:00:18]} 1/2-1/2


[Site "https://www.chess.com"]

[Event "Titled Tuesday Blitz November 15 Late 2022"]
[White "Premnath, R."]
[Black "Quispe Santacruz, Javier"]
[WhiteFideId "5021928"]
[BlackFideId "3800920"]
[WhiteElo "2555"]
[BlackElo "1930"]
[Result "1-0"]
[Round "01"]
[TimeControl "180+1"]
[Date "2022.11.16"]
[WhiteClock "0:01:31"]
[BlackClock "0:00:08"]

1. d4 {[%clk 0:02:59]}  Nf6 {[%clk 0:02:54]} 2. c4 {[%clk 0:02:58]}  g6 {[%clk 0:02:54]} 3. Nc3 {[%clk 0:02:58]}  Bg7 {[%clk 0:02:54]} 4. e4 {[%clk 0:02:58]}  e6 {[%clk 0:02:55]} 5. Be2 {[%clk 0:02:58]}  d6 {[%clk 0:02:52]} 6. Nf3 {[%clk 0:02:58]}  Nbd7 {[%clk 0:02:49]} 7. O-O {[%clk 0:02:59]}  e5 {[%clk 0:02:48]} 8. dxe5 {[%clk 0:02:51]}  dxe5 {[%clk 0:02:48]} 9. h3 {[%clk 0:02:50]}  O-O {[%clk 0:02:47]} 10. Be3 {[%clk 0:02:51]}  Qe7 {[%clk 0:02:44]} 11. Qc2 {[%clk 0:02:49]}  Re8 {[%clk 0:02:42]} 12. Nd5 {[%clk 0:02:37]}  Nxd5 {[%clk 0:02:38]} 13. cxd5 {[%clk 0:02:37]}  c5 {[%clk 0:02:02]} 14. dxc6 {[%clk 0:02:33]}  bxc6 {[%clk 0:02:02]} 15. Qxc6 {[%clk 0:02:33]}  Rb8 {[%clk 0:02:02]} 16. b3 {[%clk 0:02:32]}  Bb7 {[%clk 0:01:59]} 17. Qa4 {[%clk 0:02:32]}  Nc5 {[%clk 0:01:55]} 18. Bxc5 {[%clk 0:02:32]}  Qxc5 {[%clk 0:01:55]} 19. Rac1 {[%clk 0:02:32]}  Qb6 {[%clk 0:01:49]} 20. Rfd1 {[%clk 0:02:15]}  Rbc8 {[%clk 0:01:40]} 21. Bc4 {[%clk 0:02:07]}  Bc6 {[%clk 0:01:21]} 22. Bxf7+ {[%clk 0:02:05]}  Kxf7 {[%clk 0:01:19]} 23. Qc4+ {[%clk 0:02:05]}  Bd5 {[%clk 0:01:00]} 24. Qxd5+ {[%clk 0:02:03]}  Qe6 {[%clk 0:01:00]} 25. Qb7+ {[%clk 0:02:00]}  Kg8 {[%clk 0:00:29]} 26. Ng5 {[%clk 0:01:48]}  Rxc1 {[%clk 0:00:21]} 27. Rxc1 {[%clk 0:01:48]}  Qf6 {[%clk 0:00:18]} 28. Qd5+ {[%clk 0:01:46]}  Kh8 {[%clk 0:00:18]} 29. Nf7+ {[%clk 0:01:47]}  Kg8 {[%clk 0:00:13]} 30. Nd6+ {[%clk 0:01:35]}  Re6 {[%clk 0:00:09]} 31. Rc8+ {[%clk 0:01:35]}  Bf8 {[%clk 0:00:09]} 32. Re8 {[%clk 0:01:32]}  Kg7 {[%clk 0:00:08]} 33. Rxe6 {[%clk 0:01:31]} 1-0


[Site "https://www.chess.com"]

[Event "Titled Tuesday Blitz November 15 Late 2022"]
[White "Przybylski, Wojciech"]
[Black "Gerbelli Neto, Eduardo"]
[WhiteFideId "1117599"]
[BlackFideId "2103281"]
[WhiteElo "2221"]
[BlackElo "2178"]
[Result "1-0"]
[Round "01"]
[TimeControl "180+1"]
[Date "2022.11.16"]
[WhiteClock "0:00:35"]
[BlackClock "0:00:06"]

1. e4 {[%clk 0:02:55]}  e5 {[%clk 0:02:58]} 2. Nf3 {[%clk 0:02:54]}  Nc6 {[%clk 0:02:57]} 3. d4 {[%clk 0:02:54]}  exd4 {[%clk 0:02:57]} 4. Nxd4 {[%clk 0:02:53]}  Bc5 {[%clk 0:02:57]} 5. Nxc6 {[%clk 0:02:53]}  Qf6 {[%clk 0:02:57]} 6. Qf3 {[%clk 0:02:53]}  dxc6 {[%clk 0:02:56]} 7. Nc3 {[%clk 0:02:51]}  Qxf3 {[%clk 0:02:56]} 8. gxf3 {[%clk 0:02:51]}  Ne7 {[%clk 0:02:56]} 9. Be3 {[%clk 0:02:50]}  Bxe3 {[%clk 0:02:45]} 10. fxe3 {[%clk 0:02:50]}  Be6 {[%clk 0:02:46]} 11. Rg1 {[%clk 0:02:47]}  g6 {[%clk 0:02:39]} 12. O-O-O {[%clk 0:02:46]}  Rd8 {[%clk 0:02:34]} 13. Bd3 {[%clk 0:02:42]}  O-O {[%clk 0:02:27]} 14. b3 {[%clk 0:02:35]}  b5 {[%clk 0:02:21]} 15. Ne2 {[%clk 0:02:34]}  a5 {[%clk 0:02:10]} 16. h4 {[%clk 0:02:22]}  a4 {[%clk 0:01:51]} 17. b4 {[%clk 0:02:12]}  Bxa2 {[%clk 0:01:49]} 18. Nd4 {[%clk 0:02:08]}  Be6 {[%clk 0:01:07]} 19. Nxe6 {[%clk 0:02:07]}  fxe6 {[%clk 0:01:06]} 20. f4 {[%clk 0:02:07]}  Kh8 {[%clk 0:01:01]} 21. h5 {[%clk 0:02:05]}  Rg8 {[%clk 0:00:55]} 22. Rg5 {[%clk 0:01:58]}  gxh5 {[%clk 0:00:37]} 23. Rxh5 {[%clk 0:01:57]}  Rg7 {[%clk 0:00:36]} 24. Rdh1 {[%clk 0:01:51]}  Rdg8 {[%clk 0:00:34]} 25. Kb2 {[%clk 0:01:50]}  Ng6 {[%clk 0:00:24]} 26. Rc5 {[%clk 0:01:48]}  Ne7 {[%clk 0:00:24]} 27. Re5 {[%clk 0:01:45]}  Rg3 {[%clk 0:00:14]} 28. Rxe6 {[%clk 0:01:42]}  R8g7 {[%clk 0:00:15]} 29. f5 {[%clk 0:01:35]}  Rf7 {[%clk 0:00:15]} 30. Re1 {[%clk 0:01:22]}  Kg8 {[%clk 0:00:14]} 31. Kc3 {[%clk 0:01:21]}  Kf8 {[%clk 0:00:14]} 32. Kd4 {[%clk 0:01:21]}  h5 {[%clk 0:00:12]} 33. Rh6 {[%clk 0:01:19]}  Rg4 {[%clk 0:00:10]} 34. Kc3 {[%clk 0:01:14]}  h4 {[%clk 0:00:09]} 35. Rh1 {[%clk 0:01:13]}  Ng8 {[%clk 0:00:07]} 36. R6xh4 {[%clk 0:01:07]}  Nf6 {[%clk 0:00:08]} 37. Rh8+ {[%clk 0:00:54]}  Ke7 {[%clk 0:00:08]} 38. R8h4 {[%clk 0:00:47]}  Rfg7 {[%clk 0:00:08]} 39. e5 {[%clk 0:00:41]}  Nd5+ {[%clk 0:00:08]} 40. Kd2 {[%clk 0:00:41]}  Rg2+ {[%clk 0:00:08]} 41. Be2 {[%clk 0:00:41]}  R7g3 {[%clk 0:00:07]} 42. Rh7+ {[%clk 0:00:39]}  Kf8 {[%clk 0:00:07]} 43. Rh8+ {[%clk 0:00:39]}  Kf7 {[%clk 0:00:06]} 44. R1h7+ {[%clk 0:00:38]}  Rg7 {[%clk 0:00:06]} 45. c3 {[%clk 0:00:35]} 1-0


[Site "https://www.chess.com"]

[Event "Titled Tuesday Blitz November 15 Late 2022"]
[White "Reprintsev, Alexander"]
[Black "Grigorov, Grigor"]
[WhiteFideId "14100541"]
[BlackFideId "2907313"]
[WhiteElo "2230"]
[BlackElo "2510"]
[Result "0-1"]
[Round "01"]
[TimeControl "180+1"]
[Date "2022.11.16"]
[WhiteClock "0:00:20"]
[BlackClock "0:01:11"]

1. e4 {[%clk 0:02:53]}  c6 {[%clk 0:02:59]} 2. Nc3 {[%clk 0:02:52]}  d5 {[%clk 0:02:59]} 3. Nf3 {[%clk 0:02:52]}  dxe4 {[%clk 0:02:59]} 4. Nxe4 {[%clk 0:02:46]}  Nf6 {[%clk 0:02:59]} 5. Qe2 {[%clk 0:02:46]}  Nxe4 {[%clk 0:02:59]} 6. Qxe4 {[%clk 0:02:47]}  Be6 {[%clk 0:02:59]} 7. Be2 {[%clk 0:02:34]}  Nd7 {[%clk 0:02:57]} 8. O-O {[%clk 0:02:33]}  Nf6 {[%clk 0:02:57]} 9. Qa4 {[%clk 0:02:31]}  g6 {[%clk 0:02:52]} 10. d3 {[%clk 0:02:21]}  Bg7 {[%clk 0:02:52]} 11. Be3 {[%clk 0:02:18]}  O-O {[%clk 0:02:51]} 12. Nd4 {[%clk 0:02:17]}  Bd7 {[%clk 0:02:49]} 13. Qb3 {[%clk 0:02:13]}  c5 {[%clk 0:02:46]} 14. Nf3 {[%clk 0:02:12]}  b6 {[%clk 0:02:46]} 15. Rfe1 {[%clk 0:02:07]}  Bc6 {[%clk 0:02:46]} 16. Ne5 {[%clk 0:02:05]}  Bd5 {[%clk 0:02:39]} 17. c4 {[%clk 0:02:05]}  Bb7 {[%clk 0:02:39]} 18. Rad1 {[%clk 0:02:05]}  Nd7 {[%clk 0:02:32]} 19. Bf3 {[%clk 0:01:35]}  Bxf3 {[%clk 0:02:26]} 20. Nxf3 {[%clk 0:01:36]}  e5 {[%clk 0:02:23]} 21. Nd2 {[%clk 0:01:32]}  f5 {[%clk 0:02:12]} 22. f4 {[%clk 0:01:28]}  Qc7 {[%clk 0:02:11]} 23. fxe5 {[%clk 0:01:25]}  Nxe5 {[%clk 0:02:08]} 24. d4 {[%clk 0:01:22]}  Ng4 {[%clk 0:01:55]} 25. Nf1 {[%clk 0:01:18]}  Nxe3 {[%clk 0:01:52]} 26. Nxe3 {[%clk 0:01:06]}  Bxd4 {[%clk 0:01:51]} 27. Kh1 {[%clk 0:01:06]}  Rae8 {[%clk 0:01:49]} 28. Nd5 {[%clk 0:01:06]}  Qf7 {[%clk 0:01:45]} 29. Qf3 {[%clk 0:01:05]}  Rxe1+ {[%clk 0:01:44]} 30. Rxe1 {[%clk 0:01:05]}  Re8 {[%clk 0:01:44]} 31. Re2 {[%clk 0:00:49]}  Bxb2 {[%clk 0:01:33]} 32. h4 {[%clk 0:00:49]}  Bd4 {[%clk 0:01:29]} 33. h5 {[%clk 0:00:44]}  Re6 {[%clk 0:01:24]} 34. g3 {[%clk 0:00:40]}  g5 {[%clk 0:01:14]} 35. Rh2 {[%clk 0:00:20]}  Re1+ {[%clk 0:01:11]} 36. Kg2 {[%clk 0:00:20]}  Rg1+ {[%clk 0:01:11]} 0-1


[Site "https://www.chess.com"]

[Event "Titled Tuesday Blitz November 15 Late 2022"]
[White "Riehle, Marco"]
[Black "Sonnenschein, Philipp"]
[WhiteFideId "12904392"]
[BlackFideId "16250877"]
[WhiteElo "2462"]
[BlackElo "2225"]
[Result "1-0"]
[Round "01"]
[TimeControl "180+1"]
[Date "2022.11.16"]
[WhiteClock "0:01:31"]
[BlackClock "0:00:54"]

1. e4 {[%clk 0:03:00]}  c5 {[%clk 0:02:31]} 2. a3 {[%clk 0:02:59]}  Nc6 {[%clk 0:02:31]} 3. b4 {[%clk 0:02:59]}  e6 {[%clk 0:02:29]} 4. b5 {[%clk 0:02:59]}  Nd4 {[%clk 0:02:28]} 5. c3 {[%clk 0:02:58]}  Nxb5 {[%clk 0:02:17]} 6. Bxb5 {[%clk 0:02:57]}  Nf6 {[%clk 0:02:18]} 7. d3 {[%clk 0:02:56]}  a6 {[%clk 0:02:17]} 8. Ba4 {[%clk 0:02:55]}  b5 {[%clk 0:02:16]} 9. Bc2 {[%clk 0:02:56]}  d5 {[%clk 0:02:16]} 10. e5 {[%clk 0:02:52]}  Nd7 {[%clk 0:02:17]} 11. Nf3 {[%clk 0:02:47]}  Be7 {[%clk 0:02:15]} 12. O-O {[%clk 0:02:47]}  O-O {[%clk 0:02:15]} 13. d4 {[%clk 0:02:47]}  f6 {[%clk 0:02:14]} 14. exf6 {[%clk 0:02:47]}  Bxf6 {[%clk 0:02:14]} 15. Re1 {[%clk 0:02:46]}  Re8 {[%clk 0:02:14]} 16. Qd3 {[%clk 0:02:41]}  Nf8 {[%clk 0:02:15]} 17. Bf4 {[%clk 0:02:36]}  Ng6 {[%clk 0:02:14]} 18. Be5 {[%clk 0:02:35]}  Bd7 {[%clk 0:02:10]} 19. Bxf6 {[%clk 0:02:34]}  Qxf6 {[%clk 0:02:11]} 20. Ne5 {[%clk 0:02:34]}  Rf8 {[%clk 0:02:09]} 21. f3 {[%clk 0:02:28]}  Rad8 {[%clk 0:02:06]} 22. Nxg6 {[%clk 0:02:24]}  hxg6 {[%clk 0:02:06]} 23. Qxg6 {[%clk 0:02:25]}  Qh4 {[%clk 0:02:06]} 24. Qg3 {[%clk 0:02:17]}  Qh6 {[%clk 0:02:05]} 25. Qe5 {[%clk 0:02:07]}  Rf4 {[%clk 0:02:02]} 26. Nd2 {[%clk 0:02:04]}  cxd4 {[%clk 0:01:54]} 27. cxd4 {[%clk 0:02:03]}  Rc8 {[%clk 0:01:54]} 28. Rac1 {[%clk 0:02:01]}  Rcf8 {[%clk 0:01:43]} 29. Nf1 {[%clk 0:01:56]}  g5 {[%clk 0:01:38]} 30. h3 {[%clk 0:01:50]}  R8f6 {[%clk 0:01:33]} 31. Bd3 {[%clk 0:01:47]}  Be8 {[%clk 0:01:32]} 32. Rc8 {[%clk 0:01:45]}  Kf8 {[%clk 0:01:32]} 33. Qd6+ {[%clk 0:01:40]}  Kf7 {[%clk 0:01:32]} 34. Qd8 {[%clk 0:01:39]}  Kg8 {[%clk 0:00:54]} 35. Qxe8+ {[%clk 0:01:37]}  Kg7 {[%clk 0:00:54]} 36. Rc7+ {[%clk 0:01:32]}  Rf7 {[%clk 0:00:54]} 37. Rxf7+ {[%clk 0:01:32]}  Rxf7 {[%clk 0:00:53]} 38. Rxe6 {[%clk 0:01:33]}  Qxe6 {[%clk 0:00:53]} 39. Qxe6 {[%clk 0:01:33]}  Kh8 {[%clk 0:00:53]} 40. Qxf7 {[%clk 0:01:32]}  g4 {[%clk 0:00:54]} 41. Qh7# {[%clk 0:01:31]} 1-0


[Site "https://www.chess.com"]